bitfinex/quotes_SOLUSD_20240725
["timestamp","ask_amount","ask_price","bid_price","bid_amount"]
[1721910700620,15.6459,169.15,168.89,40.0]
[1721910700621,5.9151,169.06,168.89,40.0]
[1721910700792,50.4622,169.13,168.9,65.0]
[1721910701196,5.9155,169.05,168.88,57.43]
[1721910701397,5.9161,169.03,168.84,57.43]
[1721910701593,6.527,169.01,168.84,57.43]
[1721910701818,6.4712,169.11,168.89,37.43]
[1721910702001,5.9147,169.07,168.89,37.43]
[1721910702208,45.0,169.06,168.89,37.43]
[1721910702515,5.9154,169.05,168.86,20.0]
[1721910702687,6.4712,169.11,168.89,20.0]
[1721910702891,5.9152,169.06,168.9,20.0]
[1721910703092,6.4712,169.11,168.9,20.0]
[1721910703093,42.1512,169.11,168.9,20.0]
[1721910703305,5.9165,169.02,168.9,20.0]
[1721910703510,35.68,169.07,168.85,37.43]
[1721910703713,35.68,169.05,168.82,6.13249739]
[1721910704008,20.0,169.06,168.83,0.03547881]
[1721910704009,20.0,169.04,168.83,0.03547881]
[1721910704196,55.68,169.06,168.84,20.0]
[1721910704398,5.9164,169.02,168.84,20.0]
[1721910704728,45.0,169.05,168.83,20.0]
[1721910704900,86.80684229,169.05,168.82,0.03547881]
[1721910705406,51.12684229,169.05,168.87,20.0]
[1721910705599,37.43,169.13,168.87,20.0]
[1721910705800,37.43,169.13,168.81,6.12512695]
[1721910705801,5.9167,169.02,168.85,20.0]
[1721910705992,26.12567526,169.1,168.87,20.0]
[1721910706312,26.12567526,169.1,168.86,37.43]
[1721910706497,26.12567526,169.1,168.81,43.55512695]
[1721910706498,37.43,169.08,168.81,43.55512695]
[1721910706695,5.9181,168.98,168.81,43.55512695]
[1721910706907,14.7897,169.04,168.81,43.55512695]
[1721910707257,65.0,169.03,168.81,43.55512695]
[1721910707434,65.0,169.03,168.82,20.0]
[1721910707612,5.9179,168.98,168.82,20.0]
[1721910707926,65.0,169.03,168.81,43.55512695]
[1721910707927,14.7924,169.01,168.81,6.12512695]
[1721910708127,65.0,169.03,168.74,8.14847545]
[1721910708128,6.2952,168.99,168.74,8.14847545]
[1721910708335,79.7949,168.98,168.75,20.0]
[1721910708617,5.92,168.92,168.75,20.0]
[1721910708801,50.9204,168.91,168.73,26.12516411]
[1721910709008,45.0,168.91,168.73,6.12516411]
[1721910709221,45.0,168.91,168.69,31.86836845]
[1721910709222,5.9235,168.82,168.69,23.719893]
[1721910709519,14.8067,168.85,168.64,57.43]
[1721910709733,14.8067,168.85,168.59,7.50740394]
[1721910709734,14.8067,168.85,168.62,36.2684]
[1721910710016,50.9227,168.84,168.66,20.0]
[1721910710227,45.0,168.84,168.66,20.0]
[1721910710413,5.9241,168.8,168.64,43.55516079]
[1721910710610,45.0,168.85,168.69,5.9278]
[1721910710919,5.9248,168.78,168.72,5.9269]
[1721910711129,45.0,168.85,168.63,20.0]
[1721910711325,5.9239,168.81,168.74,5.9259]
[1721910711518,45.0,168.85,168.67,20.0]
[1721910711707,15.9948,168.86,168.68,20.0]
[1721910711903,5.9239,168.81,168.75,5.9255]
[1721910712133,5.9234,168.82,168.76,5.9255]
[1721910712432,5.9231,168.84,168.77,5.925]
[1721910712608,30.8003,168.86,168.65,20.0]
[1721910712809,5.9248,168.78,168.66,20.0]
[1721910713126,5.9248,168.78,168.61,6.12173538]
[1721910713127,14.8084,168.83,168.61,6.12173538]
[1721910713310,45.0,168.82,168.61,6.12173538]
[1721910713518,5.925,168.78,168.61,6.12173538]
[1721910713728,45.0,168.82,168.61,6.12173538]
[1721910713937,5.9249,168.78,168.71,5.9271]
[1721910714226,5.9249,168.78,168.61,6.12173538]
[1721910714532,5.9249,168.78,168.62,40.0]
[1721910714825,45.0,168.82,168.62,20.0]
[1721910715015,14.81,168.81,168.61,6.12173538]
[1721910715216,14.8151,168.75,168.6,1.03011147]
[1721910715420,37.43,168.79,168.56,1.3518972]
[1721910715634,5.9271,168.72,168.65,5.929]
[1721910715932,37.43,168.79,168.56,1.3518972]
[1721910715933,50.9273,168.71,168.56,1.3518972]
[1721910716106,5.9283,168.69,168.62,5.9301]
[1721910716306,45.0,168.68,168.56,1.3518972]
[1721910716528,6.0087,168.67,168.56,1.3518972]
[1721910716713,5.9304,168.63,168.56,1.3518972]
[1721910716920,5.9301,168.64,168.57,5.9321]
[1721910717125,6.0087,168.67,168.56,1.3518972]
[1721910717126,5.9294,168.66,168.56,1.3518972]
[1721910717431,6.0087,168.67,168.62,5.9304]
[1721910717609,6.0087,168.67,168.56,1.3518972]
[1721910717812,6.0087,168.67,168.64,5.9294]
[1721910718117,6.0087,168.67,168.63,5.9299]
[1721910718318,45.0,168.71,168.66,5.929]
[1721910718521,45.0,168.71,168.67,5.9287]
[1721910718730,15.2711,168.72,168.56,1.3518972]
[1721910718731,15.2711,168.72,168.57,37.43]
[1721910718921,6.1714,168.74,168.58,65.0]
[1721910719124,6.1714,168.74,168.68,5.928]
[1721910719434,6.1714,168.74,168.58,85.0]
[1721910719745,15.2952,168.79,168.58,85.0]
[1721910719746,15.2952,168.79,168.71,5.9269]
[1721910719949,15.2952,168.79,168.73,5.9265]
[1721910720315,15.2952,168.79,168.68,5.928]
[1721910720521,15.2952,168.79,168.58,65.0]
[1721910720522,5.9271,168.72,168.58,65.0]
[1721910720751,35.68,168.78,168.58,65.0]
[1721910721039,5.9274,168.71,168.65,5.9292]
[1721910721241,5.9277,168.7,168.56,1.3518972]
[1721910721545,52.7252,168.79,168.56,1.3518972]
[1721910721546,50.4967,168.73,168.56,1.3518972]
[1721910721742,6.189,168.66,168.56,1.3518972]
[1721910721932,5.9299,168.64,168.56,1.3518972]
[1721910722133,5.9304,168.63,168.56,1.3518972]
[1721910722336,6.189,168.66,168.56,1.3518972]
[1721910722337,5.9311,168.61,168.56,1.3518972]
[1721910722853,45.0,168.62,168.56,1.3518972]
[1721910722854,5.9322,168.57,168.56,1.3518972]
[1721910723225,5.9327,168.56,168.49,5.935]
[1721910723437,45.0,168.57,168.4,16.1675]
[1721910723438,5.934,168.52,168.4,6.1142796]
[1721910723626,5.9334,168.54,168.4,6.120938]
[1721910723826,95.5088,168.6,168.37,26.4106]
[1721910723827,45.0,168.53,168.37,6.4106]
[1721910724024,5.934,168.52,168.46,5.9361]
[1721910724247,14.8279,168.61,168.39,20.0]
[1721910724451,5.9329,168.55,168.49,5.935]
[1721910724625,50.9334,168.54,168.37,6.12092939]
[1721910724953,50.9334,168.54,168.36,38.4598067]
[1721910724954,5.9335,168.54,168.48,5.935]
[1721910725248,50.5087,168.6,168.49,5.9348]
[1721910725449,45.0,168.59,168.37,26.12085233]
[1721910725622,45.0,168.59,168.41,20.0]
[1721910725818,15.3488,168.64,168.45,20.0]
[1721910726025,6.189,168.66,168.47,20.0]
[1721910726225,6.189,168.66,168.48,20.0]
[1721910726640,14.8179,168.72,168.65,5.9291]
[1721910726641,5.9271,168.72,168.65,5.9291]
[1721910726844,6.2911,168.74,168.57,20.0]
[1721910727031,6.2911,168.74,168.58,65.0]
[1721910727233,6.2911,168.74,168.58,20.0]
[1721910727436,6.2911,168.74,168.55,5.9326]
[1721910727634,6.2911,168.74,168.48,37.43]
[1721910727635,5.9308,168.62,168.48,37.43]
[1721910727833,35.68,168.73,168.49,65.0]
[1721910728057,35.68,168.73,168.51,20.0]
[1721910728259,6.2911,168.74,168.52,65.0]
[1721910728460,5.9298,168.64,168.57,5.9319]
[1721910728753,6.2911,168.74,168.52,20.0]
[1721910728754,35.68,168.73,168.52,20.0]
[1721910728954,5.928,168.69,168.63,5.93]
[1721910729142,5.9279,168.7,168.53,65.0]
[1721910729341,5.9269,168.73,168.66,5.9289]
[1721910729535,6.2911,168.74,168.58,20.0]
[1721910729735,6.2911,168.74,168.59,45.0]
[1721910730040,6.2911,168.74,168.6,20.0]
[1721910730241,6.2989,168.81,168.77,5.925]
[1721910730759,15.5534,168.88,168.7,20.0]
[1721910730976,12.2407,168.89,168.71,65.0]
[1721910731275,12.2407,168.89,168.72,37.43]
[1721910731276,6.3196,168.89,168.72,37.43]
[1721910731441,6.3196,168.89,168.73,65.0]
[1721910731631,5.9203,168.91,168.73,85.0]
[1721910731830,5.921,168.89,168.73,65.0]
[1721910732027,41.78421685,168.95,168.73,65.0]
[1721910732028,5.92,168.92,168.75,20.0]
[1721910732253,36.0884,168.96,168.76,102.43]
[1721910732254,21.2917,168.96,168.76,102.43]
[1721910732447,21.2917,168.96,168.78,20.0]
[1721910732656,21.2917,168.96,168.79,65.0]
[1721910732837,5.9197,168.93,168.8,65.0]
[1721910733157,56.9717,168.96,168.76,65.0]
[1721910733368,21.2917,168.96,168.76,65.0]
[1721910733529,5.919,168.95,168.76,65.0]
[1721910733733,6.273,168.96,168.78,20.0]
[1721910734032,6.273,168.96,168.79,65.0]
[1721910734230,6.273,168.96,168.8,20.0]
[1721910734431,6.273,168.96,168.76,65.0]
[1721910734752,6.273,168.96,168.8,20.0]
[1721910734947,6.273,168.96,168.81,45.0]
[1721910735146,6.273,168.96,168.82,20.0]
[1721910735354,20.9093,169.03,168.83,45.0]
[1721910735651,5.9182,168.97,168.84,20.0]
[1721910735840,5.9182,168.97,168.85,45.0]
[1721910736039,20.9093,169.03,168.86,20.0]
[1721910736040,56.5893,169.03,168.86,20.0]
[1721910736235,14.793,169.0,168.86,20.0]
[1721910736752,41.7988,169.03,168.72,77.43]
[1721910736753,5.9209,168.9,168.72,77.43]
[1721910736969,14.7993,168.93,168.72,37.43]
[1721910737168,5.9218,168.87,168.72,37.43]
[1721910737456,45.0,168.92,168.72,37.43]
[1721910737654,45.0,168.92,168.71,16.4483]
[1721910737655,80.68,168.92,168.71,16.4483]
[1721910737845,35.68,168.9,168.71,16.4483]
[1721910738033,5.9216,168.88,168.71,16.4483]
[1721910738362,45.0,168.87,168.71,16.4483]
[1721910738534,14.798,168.95,168.72,2.35739017]
[1721910738861,37.43,169.0,168.76,20.0]
[1721910739158,35.68,169.0,168.78,20.0]
[1721910739452,5.9187,168.96,168.79,67.35641252]
[1721910739761,14.7927,169.01,168.8,20.0]
[1721910739939,6.1188,169.03,168.81,45.0]
[1721910740142,50.4713,169.02,168.82,22.35599378]
[1721910740343,5.9175,168.99,168.83,67.35585423]
[1721910740650,6.1188,169.03,168.84,59.7857147]
[1721910740852,5.9173,169.0,168.85,67.35557518]
[1721910741158,6.1188,169.03,168.85,67.35557518]
[1721910741159,6.1188,169.03,168.86,2.35543569]
[1721910741537,5.9185,168.96,168.86,2.35543569]
[1721910741737,41.7988,169.03,168.86,2.35543569]
[1721910742046,5.9185,168.96,168.86,2.35543569]
[1721910742444,5.9179,168.98,168.86,2.35543569]
[1721910742655,5.9172,169.0,168.86,2.35543569]
[1721910742863,45.0,168.99,168.86,2.35543569]
[1721910743038,5.9168,169.01,168.86,2.35543569]
[1721910743241,6.1188,169.03,168.86,47.35543569]
[1721910743434,5.9168,169.01,168.87,20.0]
[1721910743761,20.909,169.03,168.88,2.35515674]
[1721910743963,41.7988,169.03,168.88,2.35515674]
[1721910744277,5.9192,168.95,168.88,2.35515674]
[1721910744442,5.9185,168.96,168.88,2.35515674]
[1721910744788,14.7931,169.0,168.88,2.35515674]
[1721910744950,6.1188,169.03,168.88,2.35515674]
[1721910744951,45.0,168.99,168.88,2.35515674]
[1721910745259,20.909,169.03,168.88,2.35515674]
[1721910745458,6.1188,169.03,168.88,2.35515674]
[1721910745759,14.7921,169.01,168.88,2.35515674]
[1721910746054,5.9172,169.0,168.88,2.35515674]
[1721910746260,6.1188,169.03,168.88,2.35515674]
[1721910746443,45.0,169.02,168.88,2.35515674]
[1721910747361,6.1188,169.03,168.88,2.35515674]
[1721910747552,20.88805784,169.07,168.88,2.35515674]
[1721910747553,6.5647,169.1,168.88,2.35515674]
[1721910747856,6.5647,169.1,168.88,47.35515674]
[1721910748048,6.5647,169.1,168.89,20.0]
[1721910748049,14.786,169.08,168.89,20.0]
[1721910748247,5.9162,169.03,168.9,47.35487786]
[1721910748561,0.5368153,169.08,168.92,20.0]
[1721910748752,0.5368153,169.08,168.9,45.0]
[1721910748753,0.5368153,169.08,168.93,67.35445966]
[1721910749142,0.5368153,169.08,168.94,2.35432029]
[1721910749771,5.9149,169.07,168.94,2.35432029]
[1721910749971,5.9149,169.07,168.94,47.35432029]
[1721910750263,6.4512153,169.08,168.95,20.0]
[1721910750565,0.5368153,169.08,168.96,47.35404161]
[1721910750877,0.5368153,169.08,168.97,22.35390229]
[1721910751049,0.5368153,169.08,168.98,47.35376299]
[1721910751375,0.5368153,169.08,168.99,38.7834237]
[1721910751541,0.5368153,169.08,169.0,47.35348444]
[1721910751869,0.5368153,169.08,169.01,22.35334519]
[1721910752078,0.5368153,169.08,169.02,47.35320595]
[1721910752240,0.5368153,169.08,169.03,22.35306673]
[1721910752578,0.5368153,169.08,169.04,48.53553239]
[1721910752749,5.9108,169.19,169.05,23.53529561]
[1721910753073,5.9109,169.18,169.06,47.35264918]
[1721910753276,5.9109,169.18,169.07,23.5350049]
[1721910753471,5.9109,169.18,169.08,2.35237089]
[1721910753672,5.9105,169.2,169.09,1.18247493]
[1721910753882,5.9105,169.19,169.1,2.35209267]
[1721910754079,1.21474349,169.2,169.1,2.35209267]
[1721910754385,14.7772,169.18,169.1,2.35209267]
[1721910754682,14.7849,169.1,168.97,1.18288946]
[1721910754895,1.21474349,169.09,168.98,2.35376299]
[1721910755048,5.9166,169.02,168.98,2.35376299]
[1721910755247,14.7891,169.05,168.98,2.35376299]
[1721910755469,5.9158,169.04,168.98,2.35376299]
[1721910755754,389.2,169.08,168.98,2.35376299]
[1721910756078,5.9154,169.05,168.98,2.35376299]
[1721910756260,1.21474349,169.07,168.98,2.35376299]
[1721910756648,5.9158,169.04,168.98,2.35376299]
[1721910757068,389.2,169.08,168.98,2.35376299]
[1721910757362,389.2,169.08,168.99,1.18307197]
[1721910757762,5.9124,169.14,168.99,21.18307197]
[1721910758080,403.9754,169.2,169.03,20.0]
[1721910758280,395.1104,169.2,169.04,3.5354553]
[1721910758453,5.9107,169.19,169.05,3.5352566]
[1721910758649,389.2,169.2,169.06,2.35264918]
[1721910758878,1.21474349,169.19,169.06,22.35264918]
[1721910759091,1.21474349,169.19,169.06,2.35264918]
[1721910759380,14.7818,169.13,169.06,2.35264918]
[1721910759580,5.9125,169.14,169.06,2.35264918]
[1721910759887,5.9132,169.12,169.06,2.35264918]
[1721910760060,5.9122,169.14,169.06,2.35264918]
[1721910760247,5.9133,169.11,169.06,2.35264918]
[1721910760651,5.9136,169.1,169.06,2.35264918]
[1721910760876,46.21474349,169.13,169.06,2.35264918]
[1721910761249,5.9134,169.11,169.06,2.35264918]
[1721910761656,1.21474349,169.1,169.06,2.35264918]
[1721910761890,5.9147,169.07,169.06,2.35264918]
[1721910762089,5.9157,169.05,168.94,1.18313683]
[1721910762298,1.21474349,169.1,168.95,2.35418094]
[1721910762299,50.4654,169.09,168.95,2.35418094]
[1721910762579,35.68,169.07,168.95,2.35418094]
[1721910762882,1.21474349,169.09,168.95,2.35418094]
[1721910763179,5.9154,169.05,168.95,2.35418094]
[1721910763383,1.21474349,169.09,168.96,1.18341157]
[1721910763609,389.2,169.1,168.97,2.35390229]
[1721910763817,389.2,169.1,168.98,1.18297584]
[1721910763972,5.9142,169.09,168.99,3.53660923]
[1721910764177,1.21474349,169.09,168.99,2.3536237]
[1721910764595,5.9151,169.06,168.99,2.3536237]
[1721910764773,5.9154,169.05,168.99,2.3536237]
[1721910765179,5.915,169.07,168.99,2.3536237]
[1721910765385,395.1136,169.1,168.99,2.3536237]
[1721910765596,389.2,169.1,168.99,2.3536237]
[1721910765795,1.21474349,169.09,168.99,2.3536237]
[1721910766376,389.2,169.1,169.0,1.18319453]
[1721910766577,389.2,169.1,169.01,2.35334519]
[1721910766801,643.3,169.2,169.01,2.35334519]
[1721910766996,390.41474349,169.19,169.01,2.35334519]
[1721910767317,35.68,169.15,169.01,2.35334519]
[1721910767600,29.5581,169.16,169.01,2.35334519]
[1721910767601,35.68,169.07,169.01,2.35334519]
[1721910767804,5.9155,169.05,169.01,2.35334519]
[1721910767982,7.13054349,169.04,169.01,2.35334519]
[1721910768179,1.21474349,169.04,169.01,2.35334519]
[1721910768380,36.89474349,169.05,169.01,2.35334519]
[1721910768588,45.0,169.04,169.01,2.35334519]
[1721910768786,1.21474349,169.03,169.01,2.35334519]
[1721910769189,7.13084349,169.03,169.01,2.35334519]
[1721910769388,46.21474349,169.04,169.01,2.35334519]
[1721910769594,5.9168,169.01,168.92,15.8069]
[1721910769791,52.13194349,169.0,168.93,2.35445966]
[1721910769995,46.21474349,169.0,168.93,2.35445966]
[1721910770393,424.88,168.99,168.93,2.35445966]
[1721910770680,35.68,168.97,168.85,15.1888]
[1721910770884,5.9189,168.95,168.86,2.35543569]
[1721910771190,1.21474349,168.94,168.86,2.35543569]
[1721910771416,5.9199,168.93,168.86,2.35543569]
[1721910771613,1.21474349,168.92,168.86,2.35543569]
[1721910771910,7.13474349,168.92,168.86,2.35543569]
[1721910772119,35.68,168.91,168.86,2.35543569]
[1721910772402,35.68,168.89,168.86,2.35543569]
[1721910772797,46.21474349,168.88,168.74,6.0072]
[1721910772998,41.6017,168.87,168.75,2.35697108]
[1721910773200,41.6017,168.87,168.75,3.54183475]
[1721910773201,45.0,168.86,168.75,3.54183475]
[1721910773398,1.21474349,168.85,168.75,2.35697108]
[1721910773613,81.89474349,168.86,168.75,2.35697108]
[1721910773800,389.2,168.88,168.75,3.54185003]
[1721910774102,389.2,168.88,168.75,2.35697108]
[1721910774289,45.0,168.87,168.75,2.35697108]
[1721910774797,389.2,168.88,168.76,1.18471265]
[1721910775009,389.2,168.88,168.74,6.0072]
[1721910775010,389.2,168.88,168.77,3.54129905]
[1721910775391,389.2,168.88,168.78,2.35655214]
[1721910775787,389.2,168.88,168.79,1.18450405]
[1721910776120,389.2,168.88,168.8,2.35627293]
[1721910776291,1.21474349,168.87,168.8,2.35627293]
[1721910776604,389.2,168.88,168.8,2.35627293]
[1721910777685,389.2,168.88,168.81,1.18450456]
[1721910777884,5.9196,168.93,168.82,2.35599378]
[1721910778397,36.89474349,168.97,168.82,3.54031475]
[1721910778600,5.9193,168.94,168.83,1.18422998]
[1721910778810,5.9193,168.94,168.84,2.3557147]
[1721910779307,42.81364349,168.95,168.84,2.3557147]
[1721910779517,1.21474349,168.95,168.84,2.3557147]
[1721910779702,81.89474349,168.95,168.84,2.3557147]
[1721910779901,5.9196,168.93,168.84,2.3557147]
[1721910780293,5.92,168.92,168.84,2.3557147]
[1721910780604,5.921,168.89,168.84,2.3557147]
[1721910780807,14.7989,168.94,168.84,2.3557147]
[1721910780808,7.13614349,168.88,168.84,2.3557147]
[1721910780991,389.2,168.91,168.84,2.3557147]
[1721910781196,46.21474349,168.9,168.84,2.3557147]
[1721910781497,389.2,168.91,168.84,2.3557147]
[1721910781904,5.9215,168.88,168.84,2.3557147]
[1721910782094,1.21474349,168.87,168.84,2.3557147]
[1721910782291,7.13704349,168.86,168.84,2.3557147]
[1721910782621,5.9223,168.86,168.74,7.19200177]
[1721910782911,5.9214,168.88,168.75,3.54183734]
[1721910783229,389.2,168.89,168.76,2.35683142]
[1721910783390,389.2,168.89,168.77,1.18457485]
[1721910783795,389.2,168.89,168.78,2.35655214]
[1721910784001,389.2,168.89,168.79,1.18436308]
[1721910784409,389.2,168.89,168.8,2.35627293]
[1721910784594,1.21474349,168.88,168.8,2.35627293]
[1721910784993,389.2,168.89,168.8,2.35627293]
[1721910785315,389.2,168.89,168.8,48.54082366]
[1721910785512,389.2,168.89,168.8,47.35627293]
[1721910785698,389.2,168.89,168.81,20.0]
[1721910785898,1.21474349,168.88,168.82,2.35599378]
[1721910786105,5.9225,168.85,168.82,2.35599378]
[1721910786311,35.68,168.89,168.82,2.35599378]
[1721910786312,5.922,168.86,168.82,2.35599378]
[1721910786630,1.21474349,168.88,168.82,2.35599378]
[1721910786836,35.68,168.92,168.82,2.35599378]
[1721910786998,80.68,168.91,168.82,2.35599378]
[1721910787313,1.21474349,168.9,168.82,2.35599378]
[1721910787692,7.13554349,168.9,168.82,2.35599378]
[1721910787916,5.9221,168.86,168.82,2.35599378]
[1721910788092,36.89474349,168.89,168.82,2.35599378]
[1721910788299,5.9223,168.86,168.82,2.35599378]
[1721910788799,7.13704349,168.86,168.82,2.35599378]
[1721910789797,5.9217,168.87,168.82,2.35599378]
[1721910790021,5.9221,168.86,168.82,2.35599378]
[1721910790232,1.21474349,168.85,168.82,2.35599378]
[1721910790401,5.9228,168.84,168.82,2.35599378]
[1721910790598,52.13714349,168.85,168.82,2.35599378]
[1721910790793,1.21474349,168.85,168.82,2.35599378]
[1721910790998,41.6021,168.86,168.82,2.35599378]
[1721910791220,5.9225,168.85,168.82,2.35599378]
[1721910791399,5.9221,168.86,168.82,2.35599378]
[1721910791907,424.88,168.89,168.82,2.35599378]
[1721910792417,389.2,168.89,168.82,2.35599378]
[1721910792810,5.922,168.87,168.82,2.35599378]
[1721910793120,5.9221,168.86,168.82,2.35599378]
[1721910793302,5.9217,168.87,168.82,2.35599378]
[1721910793499,1.21474349,168.86,168.82,2.35599378]
[1721910794119,7.13614349,168.88,168.82,2.35599378]
[1721910794319,389.2,168.89,168.82,2.35599378]
[1721910794636,1.21474349,168.88,168.82,2.35599378]
[1721910795499,5.9217,168.87,168.82,2.35599378]
[1721910795710,7.13684349,168.86,168.82,2.35599378]
[1721910796020,389.2,168.89,168.82,2.35599378]
[1721910796408,5.9207,168.9,168.82,2.35599378]
[1721910796604,1.21474349,168.89,168.82,2.35599378]
[1721910797016,1.21474349,168.92,168.82,2.35599378]
[1721910797216,389.2,168.94,168.83,16.29757916]
[1721910797538,15.1422,169.07,168.85,26.4479]
[1721910797539,389.2,169.02,168.85,26.4479]
[1721910797704,389.2,169.02,168.86,68.53921606]
[1721910797902,389.2,169.02,168.88,20.0]
[1721910798247,5.9154,169.05,168.89,68.53867114]
[1721910798248,35.68,169.05,168.89,68.53867114]
[1721910798406,389.2,169.06,168.91,20.0]
[1721910798602,389.2,169.06,168.92,68.53805665]
[1721910798831,1.21474349,169.05,168.93,2.35445966]
[1721910799033,1.21474349,169.09,168.93,3.53804808]
[1721910799327,5.916,169.04,168.93,2.35445966]
[1721910799647,35.68,169.07,168.93,2.35445966]
[1721910799814,35.68,169.05,168.93,2.35445966]
[1721910800128,5.9167,169.02,168.93,2.35445966]
[1721910800310,5.9172,169.0,168.93,2.35445966]
[1721910800508,1.21474349,168.99,168.93,2.35445966]
[1721910800805,41.5992,168.94,168.93,2.35445966]
[1721910801023,1.21474349,168.98,168.83,15.1131]
[1721910801024,35.68,168.96,168.83,15.1131]
[1721910801218,1.21474349,168.95,168.84,2.3557147]
[1721910801420,5.9197,168.93,168.84,2.3557147]
[1721910801629,36.89474349,168.94,168.84,2.3557147]
[1721910801630,5.9193,168.94,168.85,1.1843127]
[1721910801832,5.9188,168.96,168.86,1.18422469]
[1721910802118,424.88,168.99,168.87,2.3552962]
[1721910802308,45.0,168.98,168.88,1.18404634]
[1721910802523,424.88,168.99,168.88,1.18404634]
[1721910802731,389.2,168.99,168.89,2.35501729]
[1721910802927,5.9155,169.05,168.9,1.18375108]
[1721910803137,389.2,169.05,168.91,6.5841]
[1721910803334,424.88,169.05,168.92,66.18351414]
[1721910803523,35.68,169.03,168.92,20.0]
[1721910803832,5.9164,169.02,168.93,1.18372227]
[1721910804040,7.13074349,169.04,168.93,2.35445966]
[1721910804326,395.1154,169.05,168.94,1.18352401]
[1721910804528,389.2,169.05,168.94,1.18352401]
[1721910804727,389.2,169.05,168.94,21.18352401]
[1721910804902,5.9165,169.02,168.94,20.0]
[1721910805111,5.9177,168.99,168.95,2.35418094]
[1721910805310,5.9185,168.96,168.95,2.35418094]
[1721910805634,50.471,169.03,168.95,2.35418094]
[1721910805830,5.9174,169.0,168.95,2.35418094]
[1721910806210,1.21474349,168.99,168.95,2.35418094]
[1721910806410,1.21474349,168.98,168.95,2.35418094]
[1721910806716,389.2,169.02,168.95,2.35418094]
[1721910807126,5.918,168.98,168.95,2.35418094]
[1721910807333,389.2,169.02,168.95,2.35418094]
[1721910807334,5.9185,168.97,168.95,2.35418094]
[1721910807546,5.9171,169.0,168.95,2.35418094]
[1721910807854,389.2,169.02,168.95,2.35418094]
[1721910808138,1.21474349,169.0,168.95,2.35418094]
[1721910808715,5.9175,168.99,168.95,2.35418094]
[1721910808915,1.21474349,168.98,168.95,2.35418094]
[1721910809317,7.13224349,168.99,168.95,2.35418094]
[1721910809629,7.13184349,169.0,168.95,2.35418094]
[1721910809858,5.9176,168.99,168.95,2.35418094]
[1721910810007,7.13184349,169.0,168.95,2.35418094]
[1721910810211,389.2,169.02,168.95,2.35418094]
[1721910810820,7.13164349,169.01,168.95,2.35418094]
[1721910811022,5.9175,168.99,168.95,2.35418094]
[1721910811336,5.9183,168.97,168.95,2.35418094]
[1721910811527,254.1,169.08,168.95,2.35418094]
[1721910811528,7.13324349,168.96,168.95,2.35418094]
[1721910811738,5.9199,168.92,168.85,6.4375]
[1721910811929,1.21474349,168.91,168.86,2.35543569]
[1721910812234,1.21474349,168.95,168.86,2.35543569]
[1721910812426,5.9214,168.88,168.86,2.35543569]
[1721910812636,42.81644349,168.87,168.86,2.35543569]
[1721910812946,42.81644349,168.87,168.76,15.7809]
[1721910812947,5.9234,168.83,168.76,15.7809]
[1721910813131,51.69944349,168.87,168.77,2.35669177]
[1721910813132,5.9238,168.81,168.77,2.35669177]
[1721910813338,7.13894349,168.8,168.77,2.35669177]
[1721910813519,5.9242,168.8,168.77,2.35669177]
[1721910813726,5.9235,168.82,168.77,2.35669177]
[1721910813924,5.9231,168.83,168.77,2.35669177]
[1721910814131,5.9235,168.82,168.77,2.35669177]
[1721910814320,1.21474349,168.82,168.77,2.35669177]
[1721910814521,5.9247,168.79,168.77,2.35669177]
[1721910814744,7.13954349,168.78,168.77,2.35669177]
[1721910815049,7.13954349,168.78,168.72,0.2936439]
[1721910815050,5.9266,168.73,168.72,0.2936439]
[1721910815225,42.82134349,168.73,168.72,0.2936439]
[1721910815424,87.82134349,168.73,168.72,0.2936439]